Cogmind - Beta 14 @@@ ROGUE MODE // 2024.08.23 @ 19:27:06 Player: Lobster Glut Result: Destroyed by H-55 Commando with Gauss Rifle Performance ------------- Evolutions (2) 1000 Regions Visited (5) 1000 Robots Destroyed (8) 40 Value Destroyed (250) 250 Prototype IDs (3) 60 Alien Tech Used (0) 0 Bonus (0) 0 TOTAL SCORE: 2350 Bonus ------- None Cogmind --------- Core Integrity 0/550 Matter 173/300 Energy 99/100 System Corruption 0% Temperature Cool (9) Movement Core (100) Ox1 Location -8/Storage Parts ------- > --- POWER (2) -------- (None) > --- PROPULSION (4) --- (None) > --- UTILITY (3) ------ Small Storage Unit > --- WEAPON (2) ------- (None) > --- INVENTORY (8) ---- Large Storage Unit Peak State ------------ > --- POWER ------------ Ion Engine > --- PROPULSION ------- Flight Unit Flight Unit Flight Unit VTOL Module > --- UTILITY ---------- Improved Heat Sink > --- WEAPON ----------- Improved Medium Laser Advanced Beam Cannon > --- INVENTORY -------- Aluminum Leg Small Storage Unit Large Storage Unit Datajack [Rating: 15] Favorites ----------- Power Ion Engine Engine Ion Engine Propulsion Flight Unit Leg Aluminum Leg Wheel Wheel Flight Unit Flight Unit Utility Small Storage Unit Device Improved Heat Sink Storage Small Storage Unit Weapon Light Assault Rifle Energy Gun Improved Medium Laser Energy Cannon Advanced Beam Cannon Ballistic Gun Light Assault Rifle Ballistic Cannon Light Cannon Special Weapon Mining Laser Build | -11 -10 -10 -9 -8 -8 ------- Run | Yrd Mat Min Mat Mat Sto Slots Evolved 4 | . . . 2 2 . Power 1 | . . . 1 . . Propulsion 2 | . . . 1 1 . Utility 1 | . . . . 1 . Weapon . | . . . . . . Parts Attached 29 | 7 5 3 8 3 3 Power 3 | 2 . 1 . . . Engine 3 | 2 . 1 . . . Core . | . . . . . . Reactor . | . . . . . . Propulsion 12 | 2 2 2 4 1 1 Treads . | . . . . . . Leg 3 | . 2 . . . 1 Wheel 2 | 2 . . . . . Hover . | . . . . . . Flight 7 | . . 2 4 1 . Utility 6 | 1 1 . . 2 2 Device 2 | . . . . 1 1 Storage 4 | 1 1 . . 1 1 Processor . | . . . . . . Hackware . | . . . . . . Protection . | . . . . . . Artifact . | . . . . . . Weapon 8 | 2 2 . 4 . . Energy Gun 3 | 1 . . 2 . . Energy Cannon 1 | . . . 1 . . Ballistic Gun 1 | 1 . . . . . Ballistic Cannon 2 | . 2 . . . . Launcher . | . . . . . . Special Weapon 1 | . . . 1 . . Impact Weapon . | . . . . . . Slashing Weapon . | . . . . . . Piercing Weapon . | . . . . . . Special Melee Weapon . | . . . . . . Unidentified Prototypes 3 | . . . 3 . . Corrupted Parts 2 | . 2 . . . . System Corruption 7 | . 7 . . . . Parts Lost 11 | . 2 . 1 . 8 Power 2 | . 1 . . . 1 Propulsion 6 | . 1 . . . 5 Utility 1 | . . . . . 1 Weapon 2 | . . . 1 . 1 Highest Loss Streak 8 | . 1 . 1 . 8 To Critical Strikes . | . . . . . . Average Slot Usage (%) 63 | . 75 64 60 65 38 Engine 10 | . 11 14 11 9 3 Leg 3 | . 6 12 . . 1 Wheel 5 | . 14 . . . . Flight 15 | . . 4 30 34 18 Device 1 | . . . . 3 5 Storage 7 | . 14 12 . . 3 Energy Gun 7 | . 6 . 12 9 4 Energy Cannon 1 | . . . . 9 2 Ballistic Gun 6 | . 14 12 . . . Ballistic Cannon 3 | . 7 10 . . . Special Weapon 1 | . . . 5 . . Peak Build Rating 15 | 6 6 5 11 15 15 Average Rating 6 | 2 5 4 8 13 7 On Entrance 6 | . 6 4 3 11 15 Naked Turns . | . . . . . . Heaviest Build 32 | 11 32 14 12 13 13 Greatest Support 26 | 26 26 10 12 16 16 Greatest Overweight (x) 3 | . 3 1 1 . 1 Average Overweight (x) . | . . . . . . Largest Inventory Capacity 15 | 8 15 8 5 8 8 Average Capacity 6 | 5 8 7 5 5 6 Most Carried 6 | 5 6 6 5 5 5 Average Carried 3 | 1 3 4 4 4 2 Final Capacity 8 | 8 8 5 5 5 8 Final Carried 5 | 1 5 5 4 4 1 Class Distribution -------------------- 59% | Mutant 40% | Sprinter Dominant Class ---------------- Mutant | -10/Materials Mutant | -10/Mines Sprinter | -9/Materials Sprinter | -8/Materials Mutant | -8/Storage Resources | -11 -10 -10 -9 -8 -8 ----------- Run | Yrd Mat Min Mat Mat Sto Matter Collected 419 | 196 95 32 96 . . Remotely . | . . . . . . Salvage Created 274 | . 93 85 96 . . Parts 13 | . 3 6 4 . . Haulers Intercepted . | . . . . . . Recyclers Shooed . | . . . . . . Parts Field Recycled . | . . . . . . Retrieved Matter . | . . . . . . Parts Self-Destructed . | . . . . . . Prevented . | . . . . . . Kills | -11 -10 -10 -9 -8 -8 ------- Run | Yrd Mat Min Mat Mat Sto Combat Hostiles Destroyed 7 | . 2 2 3 . . Guns 3 | . . 1 2 . . Cannons 4 | . 2 1 1 . . Classes Destroyed 4 | . 1 2 1 . . Recycler 1 | . . 1 . . . Swarmer 2 | . . 2 . . . Grunt 4 | . 2 . 2 . . Sentry 1 | . . . 1 . . Best Kill Streak 3 | . 2 3 2 . . Combat Bots Only 2 | . 2 2 2 . . Max Kills in Single Turn 1 | . 1 1 1 . . Gunslinging . | . . . . . . Exploded . | . . . . . . Melee . | . . . . . . Uniques/NPCs Destroyed . | . . . . . . Combat | -11 -10 -10 -9 -8 -8 -------- Run | Yrd Mat Min Mat Mat Sto Hostile Shots Fired 212 | . 35 29 20 14 114 Missed 74 | . 12 7 8 7 40 Damage Taken 1616 | . 293 168 158 109 888 Core 717 | . 56 65 42 . 554 Absorbed by Shields . | . . . . . . Core Remaining (%) 80 | 100 . 51 89 . . Volleys Fired 55 | . 17 12 15 8 3 Largest 2 | . 2 2 2 2 2 Hottest 156 | . 60 55 156 124 124 Shots Fired 94 | . 34 23 21 11 5 Gun 61 | . 26 12 17 3 3 Cannon 29 | . 8 11 . 8 2 Launcher . | . . . . . . Special 4 | . . . 4 . . Kinetic 48 | . 25 23 . . . Thermal 35 | . . . 19 11 5 Explosive . | . . . . . . Electromagnetic 11 | . 9 . 2 . . Robot Hit Streak 4 | . 4 3 3 3 3 Robot Miss Streak 5 | . 5 3 3 2 2 Penetration Max . | . . . . . . Secondary Targets . | . . . . . . Shots Hit Robots 43 | . 16 9 12 3 3 Core Hits 14 | . 6 3 4 1 . Critical Kills . | . . . . . . Critical Parts Destroyed 1 | . 1 . . . . Critical Strikes 1 | . 1 . . . . Destroy 1 | . 1 . . . . Melee Attacks . | . . . . . . Impact . | . . . . . . Slashing . | . . . . . . Piercing . | . . . . . . Sneak Attacks . | . . . . . . Combat Hostiles . | . . . . . . Follow-up Attacks . | . . . . . . Damage Inflicted 688 | . 226 130 216 62 54 Guns 402 | . 160 40 168 . 34 Cannons 238 | . 66 90 . 62 20 Explosions . | . . . . . . Melee . | . . . . . . Ramming . | . . . . . . Kinetic 279 | . 149 130 . . . Thermal 302 | . . . 186 62 54 Explosive . | . . . . . . Electromagnetic 107 | . 77 . 30 . . Impact . | . . . . . . Slashing . | . . . . . . Piercing . | . . . . . . Highest Corruption 7 | . 7 7 . . . Average Corruption 6 | . 6 7 . . . Corruption Purged . | . . . . . . Corruption Blocked . | . . . . . . Effects 7 | . 2 5 . . . Message Errors 1 | . . 1 . . . Matter Fused 1 | . 1 . . . . Heat Flow Errors 2 | . . 2 . . . Energy Discharges 1 | . 1 . . . . Parts Fused 1 | . . 1 . . . Weapon Failures 1 | . . 1 . . . Overload Shots . | . . . . . . Overflow Damage 4 | . . 4 . . . Projectiles 4 | . . 4 . . . Explosions . | . . . . . . Melee . | . . . . . . Knockbacks 3 | . 2 1 . . . Impact . | . . . . . . Kinetic 3 | . 2 1 . . . Secondary . | . . . . . . Self-Inflicted Damage . | . . . . . . Shots . | . . . . . . Rammed . | . . . . . . Targets Rammed . | . . . . . . Kicked . | . . . . . . Crushed . | . . . . . . Highest Temperature 412 | . 110 216 412 234 23 Average Temperature 129 | . 40 58 214 110 10 Received Heat Transfer 585 | . 168 . 75 81 261 Effects 1 | . . . . 1 . Interference 1 | . . . . 1 . Siege Activations . | . . . . . . Robots Corrupted . | . . . . . . Combat Hostiles . | . . . . . . Parts Fried 1 | . 1 . . . . Impact Corruptions . | . . . . . . Robots Melted . | . . . . . . Combat Hostiles . | . . . . . . Parts Melted . | . . . . . . Heat Transferred 618 | . . . 396 111 111 Parts Sabotaged . | . . . . . . Parts Stolen . | . . . . . . Parts Stripped . | . . . . . . Power Chain Reactions . | . . . . . . Alert | -11 -10 -10 -9 -8 -8 ------- Run | Yrd Mat Min Mat Mat Sto Peak Influence 187 | . 70 93 187 95 99 Initial 78 | . . 23 35 78 39 Average 65 | . 35 62 125 90 69 Maximum Alert Level . | . . . . . . Low Security (%) 100 | 100 100 100 100 100 100 Level 1 . | . . . . . . Level 2 . | . . . . . . Level 3 . | . . . . . . Level 4 . | . . . . . . Level 5 . | . . . . . . High Security . | . . . . . . Max Security . | . . . . . . Squads Dispatched 4 | . . . 1 2 1 Investigation 3 | . . . 1 2 . Extermination . | . . . . . . Reinforcement 1 | . . . . . 1 Assault . | . . . . . . Garrison . | . . . . . . Intercept . | . . . . . . Searches Triggered . | . . . . . . Construction Impeded . | . . . . . . Haulers Reinforced . | . . . . . . Active Scanning Responses . | . . . . . . Cargo Convoy Interrupts . | . . . . . . Stealth | -11 -10 -10 -9 -8 -8 --------- Run | Yrd Mat Min Mat Mat Sto Distress Signals 3 | . 1 . . . 2 Communications Jammed . | . . . . . . Distress Signals . | . . . . . . Times Spotted 41 | . 6 3 3 12 17 Peak Tracking Total 15 | . 3 2 1 12 15 Tactical Retreats 1 | . 1 . . . . Traps | -11 -10 -10 -9 -8 -8 ------- Run | Yrd Mat Min Mat Mat Sto Traps Triggered . | . . . . . . Indirectly . | . . . . . . Trap Hack Attempts . | . . . . . . Triggered . | . . . . . . Disarmed . | . . . . . . Reprogrammed . | . . . . . . Reused . | . . . . . . Traps Extracted . | . . . . . . Installed . | . . . . . . Triggered . | . . . . . . Machines | -11 -10 -10 -9 -8 -8 ---------- Run | Yrd Mat Min Mat Mat Sto Machines Disabled 3 | . . 1 2 . . Max in Single Turn 1 | . . 1 1 . . Machines Repaired . | . . . . . . Machines Dismantled . | . . . . . . Machines Sabotaged . | . . . . . . Overloaded Fab Kills . | . . . . . . Hacking | -11 -10 -10 -9 -8 -8 --------- Run | Yrd Mat Min Mat Mat Sto Machines Accessed 5 | . 1 . 2 2 . Terminals 3 | . . . 2 1 . Fabricators . | . . . . . . Repair Stations . | . . . . . . Recycling Units 1 | . 1 . . . . Scanalyzers 1 | . . . . 1 . Garrison Access . | . . . . . . Total Hacks 22 | . 1 . 9 12 . Successful 16 | . 1 . 6 9 . Failed 6 | . . . 3 3 . Catastrophic . | . . . . . . Database Lockouts . | . . . . . . Manual 4 | . 1 . 3 . . Terminals 13 | . . . 9 4 . Fabricators . | . . . . . . Repair Stations . | . . . . . . Recycling Units 1 | . 1 . . . . Scanalyzers 8 | . . . . 8 . Garrison Access . | . . . . . . Terminal Hacks 7 | . . . 6 1 . Record 4 | . . . 3 1 . Emergency Access Points 1 | . . . 1 . . Alert Level 1 | . . . 1 . . Zone Layout 1 | . . . 1 . . Fabricator Hacks . | . . . . . . Repair Station Hacks . | . . . . . . Recycling Unit Hacks 1 | . 1 . . . . Retrieve Components 1 | . 1 . . . . Scanalyzer 8 | . . . . 8 . Insert Component 4 | . . . . 4 . Analyze 4 | . . . . 4 . Garrison Access Hacks . | . . . . . . Unauthorized Hacks . | . . . . . . Terminals . | . . . . . . Fabricators . | . . . . . . Repair Stations . | . . . . . . Recycling Units . | . . . . . . Scanalyzers . | . . . . . . Garrison Access . | . . . . . . Data Cores Recovered . | . . . . . . Used . | . . . . . . Hacking Detections 5 | . . . 3 2 . Full Trace Events 3 | . . . 1 2 . Feedback Events . | . . . . . . Feedback Blocked . | . . . . . . Robot Schematics Acquired . | . . . . . . Robots Built . | . . . . . . Authchips . | . . . . . . Time . | . . . . . . Total Robot Build Rating . | . . . . . . Part Schematics Acquired 4 | . . . . 4 . Parts Built . | . . . . . . Authchips . | . . . . . . Time . | . . . . . . Total Part Build Rating . | . . . . . . Parts Repaired . | . . . . . . Time . | . . . . . . Parts Recycled . | . . . . . . Recycled Matter . | . . . . . . Retrieved Matter . | . . . . . . Retrieved Components 2 | . 2 . . . . Parts Scanalyzed 4 | . . . . 4 . Part Schematics Acquired 4 | . . . . 4 . Parts Damaged 1 | . . . . 1 . Bothacking | -11 -10 -10 -9 -8 -8 ------------ Run | Yrd Mat Min Mat Mat Sto Used RIF Installer . | . . . . . . Robots Hacked . | . . . . . . Non-combat . | . . . . . . Combat . | . . . . . . Robot Hacks Applied . | . . . . . . Relay Couplers Released . | . . . . . . Fabnet Peak Effective % . | . . . . . . Robots Rewired . | . . . . . . Allies Hacked . | . . . . . . Hacks Repelled . | . . . . . . Allies | -11 -10 -10 -9 -8 -8 -------- Run | Yrd Mat Min Mat Mat Sto Total Allies . | . . . . . . Largest Group . | . . . . . . Highest-Rated Group . | . . . . . . Highest-Rated Ally . | . . . . . . Total Orders . | . . . . . . Ally Attacks . | . . . . . . Total Damage . | . . . . . . Kills . | . . . . . . Allies Corrupted . | . . . . . . Allies Melted . | . . . . . . Intel | -11 -10 -10 -9 -8 -8 ------- Run | Yrd Mat Min Mat Mat Sto Robot Analysis Total . | . . . . . . Derelict Logs Recovered . | . . . . . . Drone Launches . | . . . . . . Drone Recoveries . | . . . . . . Exploration | -11 -10 -10 -9 -8 -8 ------------- Run | Yrd Mat Min Mat Mat Sto Turns Passed 607 | 70 184 69 135 66 83 Spaces Moved 680 | 39 104 38 216 142 141 Core 41 | 14 . . . . 27 Treads . | . . . . . . Legs 58 | . 42 9 . . 7 Wheels 87 | 25 62 . . . . Hover . | . . . . . . Flight 494 | . . 29 216 142 107 Fastest Speed 29 | 50 90 37 32 29 29 Average Speed 53 | 75 117 73 34 29 50 Slowest Speed 330 | 90 330 190 114 32 120 Overloaded Moves . | . . . . . . Propulsion Burnouts . | . . . . . . Robots Hopped 8 | . . . 3 2 3 Cave-ins Triggered . | . . . . . . Exploration Rate (%) 19 | 5 33 10 19 18 33 Regions Visited 5 Branch Regions 2 Pre-discovered Areas . | . . . . . . Known Exits Taken . | . . . . . . Unknown Exits Taken 5 | 1 1 1 1 1 . Scrap Searched . | . . . . . . Spaces Dug . | . . . . . . Terrain Destroyed 2 | . . . 2 . . Melee . | . . . . . . Projectile 2 | . . . 2 . . AOE . | . . . . . . Terrain Rammed . | . . . . . . Walls Destroyed . | . . . . . . Machines Disabled . | . . . . . . Actions | -11 -10 -10 -9 -8 -8 --------- Run | Yrd Mat Min Mat Mat Sto Total 816 | 78 136 58 244 153 147 Wait 27 | 26 1 . . . . Move 659 | 38 103 37 209 137 135 Hop 8 | . . . 3 2 3 Pick Up 24 | 7 7 2 6 2 . Fast Attach . | . . . . . . Attach 27 | 6 5 3 7 3 3 Detach 5 | . 2 1 . 1 1 Swap 2 | 1 . . 1 . . Drop 9 | . 1 3 3 . 2 Fire 55 | . 17 12 15 8 3 Melee . | . . . . . . Ram . | . . . . . . Kick . | . . . . . . Crush . | . . . . . . Escape Stasis . | . . . . . . Rewire . | . . . . . . Trap . | . . . . . . Miscellaneous . | . . . . . . Route ------- -11/Scrapyard -10/Materials -10/Mines -9/Materials -8/Materials -8/Storage History --------- Turn | Location | Event 47 | -11/Scrapyard | Discovered new exit (range 16) 71 | -11/Scrapyard | Entered Materials 232 | -10/Materials | Discovered new exit (range 11) 255 | -10/Materials | Entered Mines 266 | -10/Mines | Met a Derelict bent on vengeance 321 | -10/Mines | Discovered new exit (range 5) 324 | -10/Mines | Entered Materials 324 | -9/Materials | Evolved 2 slots: Power x1, Propulsion x1 456 | -9/Materials | Discovered new exit (range 8) 459 | -9/Materials | Entered another Materials area 459 | -8/Materials | Evolved 2 slots: Propulsion x1, Utility x1 522 | -8/Materials | Discovered new exit (range 12) 525 | -8/Materials | Entered Storage 578 | -8/Storage | Core integrity fell below 50% 606 | -8/Storage | Core integrity fell below 20% 608 | -8/Storage | Destroyed by H-55 Commando with Gauss Rifle Last Messages --------------- 00568_ Penetrated by Slug. 00568_ Flight Unit destroyed. 00570_ Critical hit (Burn: +37). 00575_ U-05 Engineer suffers critical hit (Burn). 00575_ U-05 Engineer destroyed. 00576_ W-25 Informer sends out distress signal. 00578_ U-05 Engineer builds a Door. 00578_ Penetrated by Slug. 00580_ R-06 Scavenger collects Lgt. Ion Engine. 00581_ Aluminum Leg destroyed. 00581_ Penetrated by Slug. 00582_ R-06 Scavenger collects Wheel. 00582_ K-01 Serf collects debris. 00598_ K-01 Serf cleans the Transport Mainframe. 00600_ Imp. Heat Sink destroyed. 00604_ Flight Unit destroyed. 00604_ K-01 Serf cleans the Transport Mainframe. 00606_ Transport Mainframe disabled. 00608_ Penetrated by Slug. Map ----- +----------------------------------------------------+ | ????# """"?" #??????"" ??# ?????????????????? | | ????# "????" #??????"" ??# ????????????/?????? | | ????# "????" #??????? ???# ?????????? #?????? | | ????# "?"""" #??????? ???#/###+####### #?????? | | ????# """ #########+##### // #?????? | | ????# + / #?????? | | ????###################/####### #?????? | | ????????????????????? ????# #?????? | | ??????????????????? ??# ####??? | | ??????????????????# """ """ # ?? | | ??????????????????# """ """ + ?? | | ??????????????????# """ """ #/ ?? | | ??????????????????# # ###??? | | ??????????????????# ## ##" "#+#####????? | | ????????????????????# #"Y"#??### #?"R"#??????????? | | ???????????????????????""??##### #??""#??????????? | | ?????????????????########### #??###??????????? | | ?????????????????# #???????????????? | | ?????????????????# #???????????????? | | ?????????????????# #???????????????? | | ?????????????????######+#### #???????????????? | | ?????????????????# k ## ##???????????????? | | ?????????????????#""""sh ## #????????????????? | | ?????????????????#""""Ygh ## #????????????????? | | ?????????????????#"""" ##|%!#????????????????? | | ?????????????????#""" sg@ ## =!#????????????????? | | ?????????????????# s Y ## #????????????????? | | ????????????????## s ## #????????????????? | | ????????????????# g ## #????????????????? | | ????????????????############# #????????????????? | | ????????????? #????????????????? | | ????????????????# #########+#####?????????????? | | ?????????????????????????# #?????????????? | | ?????????????????????????# #?????????????? | | ?????????????????????????# #?????????????? | | ?????????????????????????# #?????????????? | | ?????????????????????????# """ """ #?????????????? | | ?????????????????????????# """ """ #?????????????? | | ?????????????????????????# """ """ #?????????????? | | ?????????????????????????# #?????????????? | | ?????????????????????????## ########?????????????? | | ??????????????????????????##?????????????????????? | | ?????????????????????????????????????????????????? | | ?????????????????????????????????????????????????? | | ?????????????????????????????????????????????????? | | ?????????????????????????????????????????????????? | | ?????????????????????????????????????????????????? | | ?????????????????????????????????????????????????? | | ?????????????????????????????????????????????????? | | ?????????????????????????????????????????????????? | +----------------------------------------------------+ Best States ------------- Heat Dissipation 45 Energy Generation 10 Energy Capacity 250 Matter Stores 255 Matter Capacity 300 Sight Range 16 Terrain Scan Density 10 Evasion (%) 64 Item Schematics ----------------- Aluminum Leg | -8/Materials | Scanalyzed Datajack | -8/Materials | Scanalyzed Imp. Heat Sink | -8/Materials | Scanalyzed Sml. Storage Unit | -8/Materials | Scanalyzed Robot Schematics ------------------ None Fabricated ------------ Nothing Alien Tech Used ----------------- None Achievements -------------- None Challenges ------------ None Game ------ Seed AlphaDisassembledStorage Manual? 0 Play Time 00:20:44 Cumulative 13.5 hours Start 2024.08.23 @ 19:05:48 End 2024.08.23 @ 19:27:06 Sessions 1 Manual Loads 0 Difficulty Rogue Special Mode None Game No. 13 Rogue 9 Adventurer 4 Explorer 0 Win Type - Total 0 Types 0/0/0/0/0/0/0/0/0 Lore% 10 Gallery% 27 Achievement% 19 Wizard Run 0 Options --------- Layout 1 ASCII 0 Keyboard 0 Movement Numpad Keybinds 0 Fullscreen 1 Font 32/SmallcapsGlow Map View 50x35 Zoom Use 0% Tactical HUD 1 Map Filters NONE Filters NONE Steam 1 RUN: d6c171a6-9d8b-4f60-8eeb-7ff8ef03d33d